[Event "Open Cappelle-la-Grande"]
[Date "2025.02.19"]
[White "Boyer, Mahel"]
[Black "Dionisi, Thomas"]
[WhiteElo "2509"]
[BlackElo "2400"]
[Round "6.6.7"]
[Result "1-0"]
[TimeControl "40/5400+30:1800+30"]

1. e4 {[%clk 1:30:18]} 1... c5 {[%clk 1:30:41]} 2. Nf3 {[%clk 1:30:00]} 2... Nf6
{[%clk 1:30:56]} 3. e5 {[%clk 1:20:44]} 3... Nd5 {[%clk 1:31:21]} 4. Nc3 {[%clk
1:20:04]} 4... e6 {[%clk 1:31:38]} 5. Ne4 {[%clk 1:18:37]} 5... f5 {[%clk
1:31:55]} 6. Nc3 {[%clk 1:18:46]} 6... Nb4 {[%clk 1:32:18]} 7. Bc4 {[%clk
1:14:27]} 7... a6 {[%clk 1:32:04]} 8. a3 {[%clk 1:13:47]} 8... N4c6 {[%clk
1:32:25]} 9. d3 {[%clk 1:05:02]} 9... b5 {[%clk 1:31:00]} 10. Ba2 {[%clk
1:05:22]} 10... Nd4 {[%clk 1:31:15]} 11. Nxd4 {[%clk 1:05:21]} 11... cxd4 {[%clk
1:31:40]} 12. Ne2 {[%clk 1:05:49]} 12... Nc6 {[%clk 1:31:42]} 13. c3 {[%clk
1:04:01]} 13... Nxe5 {[%clk 1:15:23]} 14. cxd4 {[%clk 0:59:37]} 14... Ng6 {[%clk
1:14:38]} 15. h4 {[%clk 0:49:14]} 15... Bd6 {[%clk 1:07:02]} 16. Bg5 {[%clk
0:45:42]} 16... Ne7 {[%clk 1:03:43]} 17. h5 {[%clk 0:38:30]} 17... h6 {[%clk
0:58:11]} 18. Bf4 {[%clk 0:38:10]} 18... Qb6 {[%clk 0:51:38]} 19. Qd2 {[%clk
0:37:18]} 19... Bb7 {[%clk 0:50:14]} 20. Bxd6 {[%clk 0:35:14]} 20... Qxd6 {[%clk
0:50:38]} 21. Qf4 {[%clk 0:35:33]} 21... Qxf4 {[%clk 0:23:14]} 22. Nxf4 {[%clk
0:35:59]} 22... Kf7 {[%clk 0:23:33]} 23. f3 {[%clk 0:30:21]} 23... Bd5 {[%clk
0:20:18]} 24. Bxd5 {[%clk 0:27:50]} 24... Nxd5 {[%clk 0:20:41]} 25. Nxd5 {[%clk
0:28:13]} 25... exd5 {[%clk 0:21:08]} 26. Kd2 {[%clk 0:22:48]} 26... Rac8 {[%clk
0:18:36]} 27. a4 {[%clk 0:15:16]} 27... bxa4 {[%clk 0:10:09]} 28. Rxa4 {[%clk
0:15:23]} 28... Rc6 {[%clk 0:10:35]} 29. Ra5 {[%clk 0:11:19]} 29... Rb8 {[%clk
0:08:01]} 30. Rb1 {[%clk 0:09:25]} 30... Ke6 {[%clk 0:04:57]} 31. b4 {[%clk
0:09:25]} 31... d6 {[%clk 0:02:45]} 32. Ke3 {[%clk 0:08:34]} 32... Rb5 {[%clk
0:01:35]} 33. Kf4 {[%clk 0:07:17]} 33... Rxa5 {[%clk 0:00:40]} 34. bxa5 {[%clk
0:07:46]} 34... Rc3 {[%clk 0:01:05]} 35. Ke3 {[%clk 0:05:11]} 35... Ra3 {[%clk
0:00:34]} 36. Rb7 {[%clk 0:05:39]} 36... Kf6 {[%clk 0:00:36]} 37. Rd7 {[%clk
0:05:37]} 37... Rxa5 {[%clk 0:00:35]} 38. Kf4 {[%clk 0:05:59]} 38... Ra2 {[%clk
0:00:33]} 39. Rxd6+ {[%clk 0:06:23]} 39... Kf7 {[%clk 0:00:37]} 40. Rg6 {[%clk
0:01:30]} 40... Rd2 {[%clk 0:00:33]} 41. Kxf5 {[%clk 0:01:18]} 41... Rxd3 {[%clk
0:00:41]} 42. Ke5 {[%clk 0:01:43]} 42... Ra3 {[%clk 0:24:21]} 43. Rc6 {[%clk
0:18:22]} 43... a5 {[%clk 0:10:45]} 44. Rc7+ {[%clk 0:16:22]} 44... Kf8 {[%clk
0:10:51]} 45. Kxd5 {[%clk 0:16:19]} 45... a4 {[%clk 0:11:00]} 46. Rc4 {[%clk
0:06:53]} 46... Ra1 {[%clk 0:04:24]} 47. Kc6 {[%clk 0:03:40]} 47... a3 {[%clk
0:04:49]} 48. d5 {[%clk 0:03:41]} 48... a2 {[%clk 0:00:39]} 49. Rc2 {[%clk
0:04:07]} 49... Ke7 {[%clk 0:01:04]} 50. d6+ {[%clk 0:04:12]} 50... Kd8 {[%clk
0:00:59]} 51. g4 {[%clk 0:01:47]} 51... Kc8 {[%clk 0:01:08]} 52. f4 {[%clk
0:02:09]} 52... Kd8 {[%clk 0:01:26]} 53. g5 {[%clk 0:01:53]} 53... hxg5 {[%clk
0:00:44]} 54. fxg5 {[%clk 0:02:20]} 54... Kc8 {[%clk 0:01:09]} 55. g6 {[%clk
0:02:17]} 55... Kd8 {[%clk 0:01:17]} 56. h6 {[%clk 0:02:29]} 56... gxh6 {[%clk
0:01:39]} 57. g7 {[%clk 0:02:57]} 57... Rg1 {[%clk 0:01:35]} 58. Rxa2 {[%clk
0:03:23]} 1-0

[Variant "Standard"]
[Site "Europe Echecs"]

[Event "Open Cappelle-la-Grande"]
[Date "2025.02.19"]
[White "Akhvlediani, Irakli"]
[Black "Suleymenov, Alisher"]
[WhiteElo "2369"]
[BlackElo "2481"]
[Round "6.6.8"]
[Result "1/2-1/2"]
[TimeControl "40/5400+30:1800+30"]

1. c4 {[%clk 1:30:54]} 1... e5 {[%clk 1:30:38]} 2. Nc3 {[%clk 1:31:19]} 2... Nf6
{[%clk 1:30:10]} 3. g3 {[%clk 1:31:41]} 3... d5 {[%clk 1:29:53]} 4. cxd5 {[%clk
1:32:07]} 4... Nxd5 {[%clk 1:30:18]} 5. Bg2 {[%clk 1:32:35]} 5... Nf6 {[%clk
1:30:40]} 6. Nf3 {[%clk 1:32:10]} 6... Nc6 {[%clk 1:31:02]} 7. d3 {[%clk
1:21:50]} 7... h6 {[%clk 1:30:50]} 8. O-O {[%clk 1:21:56]} 8... Bd6 {[%clk
1:30:56]} 9. b3 {[%clk 1:12:03]} 9... O-O {[%clk 1:31:08]} 10. Bb2 {[%clk
1:12:29]} 10... Re8 {[%clk 1:15:37]} 11. Nd2 {[%clk 1:10:55]} 11... Be6 {[%clk
0:58:03]} 12. Bxc6 {[%clk 1:01:14]} 12... bxc6 {[%clk 0:58:28]} 13. Rc1 {[%clk
1:01:42]} 13... Bh3 {[%clk 0:49:07]} 14. Re1 {[%clk 1:02:03]} 14... Bc5 {[%clk
0:47:30]} 15. Nce4 {[%clk 0:51:21]} 15... Bb6 {[%clk 0:38:15]} 16. Qc2 {[%clk
0:29:23]} 16... Re6 {[%clk 0:28:59]} 17. Nc5 {[%clk 0:23:32]} 17... Ng4 {[%clk
0:27:12]} 18. Nde4 {[%clk 0:14:54]} 18... Rg6 {[%clk 0:18:48]} 19. Qc4 {[%clk
0:14:40]} 19... h5 {[%clk 0:17:24]} 20. e3 {[%clk 0:12:55]} 20... h4 {[%clk
0:06:31]} 21. f3 {[%clk 0:11:37]} 21... Bxc5 {[%clk 0:06:39]} 22. fxg4 {[%clk
0:06:45]} 22... Bb6 {[%clk 0:04:52]} 23. Nf2 {[%clk 0:06:35]} 23... hxg3 {[%clk
0:04:25]} 24. hxg3 {[%clk 0:05:42]} 24... Qc8 {[%clk 0:03:47]} 25. Bxe5 {[%clk
0:04:14]} 25... Bxg4 {[%clk 0:04:09]} 26. Nxg4 {[%clk 0:04:40]} 26... Rxg4
{[%clk 0:04:34]} 27. Qxc6 {[%clk 0:04:50]} 27... Rg6 {[%clk 0:04:16]} 28. Qf3
{[%clk 0:02:27]} 28... c6 {[%clk 0:04:22]} 29. Kg2 {[%clk 0:02:47]} 29... Qa6
{[%clk 0:02:54]} 30. Rxc6 {[%clk 0:00:57]} 30... Rxc6 {[%clk 0:03:07]} 31. Qxc6
{[%clk 0:01:23]} 31... Rc8 {[%clk 0:02:58]} 32. Qe4 {[%clk 0:00:45]} 32... Qxa2+
{[%clk 0:03:08]} 33. Kf3 {[%clk 0:01:05]} 33... Rc2 {[%clk 0:01:52]} 34. Qa8+
{[%clk 0:01:10]} 34... Kh7 {[%clk 0:02:21]} 35. Qe4+ {[%clk 0:01:04]} 35... Kg8
{[%clk 0:02:48]} 36. Qa8+ {[%clk 0:01:10]} 36... Kh7 {[%clk 0:03:13]} 37. Rh1+
{[%clk 0:00:44]} 37... Kg6 {[%clk 0:03:39]} 38. Kg4 {[%clk 0:00:35]} 38... f5+
{[%clk 0:01:45]} 39. Kh3 {[%clk 0:01:04]} 39... Qxb3 {[%clk 0:01:54]} 40. Qf8
{[%clk 0:00:42]} 40... Qf7 {[%clk 0:01:21]} 41. Qxf7+ {[%clk 0:09:43]} 41...
Kxf7 {[%clk 0:31:34]} 42. Bd4 {[%clk 0:10:07]} 42... Bxd4 {[%clk 0:25:50]} 43.
exd4 {[%clk 0:10:33]} 43... Rd2 {[%clk 0:24:50]} 44. Ra1 {[%clk 0:10:43]} 44...
g5 {[%clk 0:22:53]} 45. Rxa7+ {[%clk 0:03:18]} 45... Kg6 {[%clk 0:23:18]} 46.
Ra6+ {[%clk 0:03:33]} 46... Kh5 {[%clk 0:23:40]} 47. g4+ {[%clk 0:04:01]} 47...
fxg4+ {[%clk 0:24:06]} 48. Kg3 {[%clk 0:04:29]} 48... Rxd3+ {[%clk 0:24:31]} 49.
Kg2 {[%clk 0:04:56]} 49... Rxd4 {[%clk 0:21:16]} 50. Kg3 {[%clk 0:05:16]} 50...
Rd3+ {[%clk 0:21:03]} 51. Kg2 {[%clk 0:05:42]} 51... Rd2+ {[%clk 0:19:28]}
1/2-1/2

[Variant "Standard"]
[Site "Europe Echecs"]

[Event "Open Cappelle-la-Grande"]
[Date "2025.02.19"]
[White "Flom, Gabriel"]
[Black "Degraeve, Remy"]
[WhiteElo "2455"]
[BlackElo "2371"]
[Round "6.6.9"]
[Result "1/2-1/2"]
[TimeControl "40/5400+30:1800+30"]

1. d4 {[%clk 1:30:57]} 1... d5 {[%clk 1:30:37]} 2. c4 {[%clk 1:31:23]} 2... e6
{[%clk 1:31:04]} 3. Nc3 {[%clk 1:31:03]} 3... Nf6 {[%clk 1:31:26]} 4. cxd5
{[%clk 1:31:29]} 4... exd5 {[%clk 1:31:51]} 5. Bg5 {[%clk 1:31:32]} 5... Be6
{[%clk 1:31:36]} 6. e3 {[%clk 1:25:38]} 6... Nbd7 {[%clk 1:31:35]} 7. Bd3 {[%clk
1:25:09]} 7... c6 {[%clk 1:31:53]} 8. h3 {[%clk 1:22:01]} 8... Be7 {[%clk
1:32:15]} 9. Qc2 {[%clk 1:16:22]} 9... Nh5 {[%clk 1:30:22]} 10. Bxe7 {[%clk
1:09:36]} 10... Qxe7 {[%clk 1:30:33]} 11. g4 {[%clk 1:10:04]} 11... Nhf6 {[%clk
1:30:53]} 12. Nge2 {[%clk 1:10:15]} 12... Nb6 {[%clk 1:28:37]} 13. O-O-O {[%clk
1:08:26]} 13... O-O-O {[%clk 1:28:05]} 14. Kb1 {[%clk 1:08:54]} 14... Kb8 {[%clk
1:27:52]} 15. Nc1 {[%clk 1:01:30]} 15... Ne8 {[%clk 1:21:51]} 16. Nb3 {[%clk
1:01:43]} 16... h5 {[%clk 1:20:46]} 17. f3 {[%clk 0:58:10]} 17... Bc8 {[%clk
1:20:13]} 18. Qf2 {[%clk 0:57:42]} 18... Nd6 {[%clk 1:19:47]} 19. Nc5 {[%clk
0:57:27]} 19... Ka8 {[%clk 1:08:03]} 20. b3 {[%clk 0:52:35]} 20... g6 {[%clk
1:06:14]} 21. a4 {[%clk 0:50:40]} 21... Nd7 {[%clk 1:04:50]} 22. Nxd7 {[%clk
0:37:34]} 22... Bxd7 {[%clk 1:04:53]} 23. a5 {[%clk 0:36:37]} 23... Rde8 {[%clk
1:03:13]} 24. Rhe1 {[%clk 0:36:29]} 24... hxg4 {[%clk 0:42:59]} 25. hxg4 {[%clk
0:36:55]} 25... Qh4 {[%clk 0:36:09]} 26. Qb2 {[%clk 0:28:54]} 26... Qg3 {[%clk
0:32:01]} 27. Qa3 {[%clk 0:29:20]} 27... Nc8 {[%clk 0:28:43]} 28. a6 {[%clk
0:27:36]} 28... b6 {[%clk 0:29:09]} 29. e4 {[%clk 0:26:46]} 29... Qxf3 {[%clk
0:20:12]} 30. Rf1 {[%clk 0:26:30]} 30... Qxg4 {[%clk 0:19:25]} 31. exd5 {[%clk
0:25:53]} 31... Qxd4 {[%clk 0:17:06]} 32. dxc6 {[%clk 0:24:04]} 32... Bxc6
{[%clk 0:16:10]} 33. Qb2 {[%clk 0:19:31]} 33... Qe5 {[%clk 0:13:38]} 34. Bb5
{[%clk 0:17:36]} 34... Be4+ {[%clk 0:10:52]} 35. Nxe4 {[%clk 0:11:13]} 35...
Qxb5 {[%clk 0:11:18]} 36. Nc5 {[%clk 0:11:34]} 36... bxc5 {[%clk 0:02:25]} 37.
Qg2+ {[%clk 0:11:59]} 37... Kb8 {[%clk 0:02:52]} 38. Qg3+ {[%clk 0:12:23]} 38...
Ka8 {[%clk 0:02:46]} 39. Qg2+ {[%clk 0:12:46]} 39... Kb8 {[%clk 0:03:13]} 40.
Qg3+ {[%clk 0:13:13]} 40... Ka8 {[%clk 0:01:01]} 41. Qg2+ {[%clk 0:13:32]} 41...
Kb8 {[%clk 0:01:27]} 42. Qg3+ {[%clk 0:13:59]} 42... Ka8 {[%clk 0:25:15]}
1/2-1/2

[Variant "Standard"]
[Site "Europe Echecs"]

[Event "Open Cappelle-la-Grande"]
[Date "2025.02.19"]
[White "Johnson, Donald"]
[Black "Duboue, Peio"]
[WhiteElo "2337"]
[BlackElo "2440"]
[Round "6.6.10"]
[Result "1/2-1/2"]
[TimeControl "40/5400+30:1800+30"]

1. e4 {[%clk 1:30:59]} 1... c6 {[%clk 1:30:55]} 2. d4 {[%clk 1:31:25]} 2... d5
{[%clk 1:31:24]} 3. exd5 {[%clk 1:31:29]} 3... cxd5 {[%clk 1:31:50]} 4. Bd3
{[%clk 1:31:56]} 4... Nc6 {[%clk 1:32:15]} 5. c3 {[%clk 1:32:23]} 5... Qc7
{[%clk 1:32:42]} 6. h3 {[%clk 1:32:50]} 6... Nf6 {[%clk 1:33:07]} 7. Ne2 {[%clk
1:32:14]} 7... e5 {[%clk 1:32:11]} 8. dxe5 {[%clk 1:32:40]} 8... Nxe5 {[%clk
1:32:36]} 9. O-O {[%clk 1:19:39]} 9... Nxd3 {[%clk 1:21:58]} 10. Qxd3 {[%clk
1:20:08]} 10... Be7 {[%clk 1:22:21]} 11. Bg5 {[%clk 1:15:15]} 11... O-O {[%clk
1:22:28]} 12. Nf4 {[%clk 1:05:17]} 12... Qe5 {[%clk 1:12:26]} 13. Bxf6 {[%clk
1:04:22]} 13... Bxf6 {[%clk 1:12:50]} 14. Nxd5 {[%clk 1:03:24]} 14... Bf5 {[%clk
1:09:56]} 15. Nxf6+ {[%clk 0:50:11]} 15... Qxf6 {[%clk 1:10:21]} 16. Qf3 {[%clk
0:49:40]} 16... Rad8 {[%clk 1:09:18]} 17. Re1 {[%clk 0:31:26]} 17... Qb6 {[%clk
0:51:28]} 18. Qxf5 {[%clk 0:23:05]} 18... Qxb2 {[%clk 0:51:51]} 19. Nd2 {[%clk
0:21:59]} 19... Qxd2 {[%clk 0:51:15]} 20. Re7 {[%clk 0:18:39]} 20... Qxc3 {[%clk
0:50:47]} 21. Rb1 {[%clk 0:18:56]} 21... g6 {[%clk 0:37:08]} 22. Qf4 {[%clk
0:15:42]} 22... Rd4 {[%clk 0:36:19]} 23. Qc1 {[%clk 0:11:39]} 23... Qxc1+ {[%clk
0:32:27]} 24. Rxc1 {[%clk 0:12:08]} 24... Rb8 {[%clk 0:29:45]} 25. g3 {[%clk
0:10:30]} 25... Rd6 {[%clk 0:28:47]} 26. Rcc7 {[%clk 0:09:09]} 26... Rf6 {[%clk
0:29:14]} 27. h4 {[%clk 0:08:17]} 27... h5 {[%clk 0:26:48]} 28. Kf1 {[%clk
0:06:44]} 28... Rd8 {[%clk 0:25:20]} 29. Ke2 {[%clk 0:02:48]} 29... Rdd6 {[%clk
0:24:42]} 30. Rxb7 {[%clk 0:03:14]} 30... Rde6+ {[%clk 0:24:55]} 31. Kf1 {[%clk
0:03:25]} 31... Rxe7 {[%clk 0:25:15]} 32. Rxe7 {[%clk 0:03:54]} 32... Ra6 {[%clk
0:25:35]} 33. Re2 {[%clk 0:04:22]} 33... Kg7 {[%clk 0:24:25]} 34. Kg2 {[%clk
0:04:38]} 34... Ra3 {[%clk 0:24:27]} 35. Kf1 {[%clk 0:05:02]} 35... Kf6 {[%clk
0:24:08]} 36. Kg2 {[%clk 0:05:19]} 36... a5 {[%clk 0:22:59]} 37. Kf1 {[%clk
0:04:46]} 37... Kf5 {[%clk 0:22:52]} 38. Kg2 {[%clk 0:05:13]} 38... Rc3 {[%clk
0:18:42]} 39. Re7 {[%clk 0:05:07]} 39... Kf6 {[%clk 0:15:31]} 40. Re4 {[%clk
0:05:10]} 40... Ra3 {[%clk 0:13:13]} 41. Re2 {[%clk 0:04:40]} 41... Ra4 {[%clk
0:13:28]} 42. Kf3 {[%clk 0:02:41]} 42... Kf5 {[%clk 0:11:52]} 43. Re7 {[%clk
0:01:42]} 43... f6 {[%clk 0:10:33]} 44. Re2 {[%clk 0:01:43]} 44... g5 {[%clk
0:09:44]} 45. hxg5 {[%clk 0:02:10]} 45... fxg5 {[%clk 0:08:44]} 46. Rc2 {[%clk
0:29:10]} 46... Re4 {[%clk 0:28:19]} 47. Rc5+ {[%clk 0:28:52]} 47... Re5 {[%clk
0:28:44]} 48. Rc4 {[%clk 0:19:25]} 48... g4+ {[%clk 0:25:20]} 49. Kg2 {[%clk
0:19:52]} 49... Ke6 {[%clk 0:25:23]} 50. Rd4 {[%clk 0:18:52]} 50... Rf5 {[%clk
0:24:38]} 51. Kf1 {[%clk 0:16:21]} 51... Ke5 {[%clk 0:23:02]} 52. Ra4 {[%clk
0:15:57]} 52... Kd6 {[%clk 0:23:24]} 53. Ke2 {[%clk 0:16:21]} 53... Kc6 {[%clk
0:23:28]} 54. Re4 {[%clk 0:16:16]} 54... Kd5 {[%clk 0:21:44]} 55. Ra4 {[%clk
0:16:37]} 55... Kc6 {[%clk 0:21:26]} 56. Re4 {[%clk 0:17:03]} 56... Kb5 {[%clk
0:21:50]} 57. Ke1 {[%clk 0:12:48]} 57... a4 {[%clk 0:20:40]} 58. Ke2 {[%clk
0:12:18]} 58... Ka5 {[%clk 0:20:45]} 59. a3 {[%clk 0:12:10]} 59... Kb5 {[%clk
0:17:31]} 60. Rb4+ {[%clk 0:12:34]} 60... Ka5 {[%clk 0:17:59]} 61. Re4 {[%clk
0:13:00]} 61... Kb5 {[%clk 0:16:55]} 62. Rb4+ {[%clk 0:13:20]} 62... Ka5 {[%clk
0:17:21]} 1/2-1/2

[Variant "Standard"]
[Site "Europe Echecs"]

[Event "Open Cappelle-la-Grande"]
[Date "2025.02.19"]
[White "Barp, Alberto"]
[Black "Belkaid, Sohan"]
[WhiteElo "2437"]
[BlackElo "2370"]
[Round "6.6.11"]
[Result "0-1"]
[TimeControl "40/5400+30:1800+30"]

1. d4 {[%clk 1:30:55]} 1... d5 {[%clk 1:30:30]} 2. c4 {[%clk 1:31:20]} 2... e6
{[%clk 1:30:51]} 3. Nf3 {[%clk 1:31:45]} 3... Nf6 {[%clk 1:31:12]} 4. g3 {[%clk
1:32:10]} 4... Be7 {[%clk 1:31:04]} 5. Bg2 {[%clk 1:32:36]} 5... O-O {[%clk
1:31:12]} 6. O-O {[%clk 1:32:58]} 6... dxc4 {[%clk 1:30:12]} 7. Qa4 {[%clk
1:33:15]} 7... b6 {[%clk 1:28:20]} 8. Ne5 {[%clk 1:31:30]} 8... Qxd4 {[%clk
1:28:19]} 9. Bxa8 {[%clk 1:31:49]} 9... Qxe5 {[%clk 1:28:43]} 10. Bf3 {[%clk
1:30:15]} 10... Nd5 {[%clk 1:28:55]} 11. Qxc4 {[%clk 1:29:49]} 11... Ba6 {[%clk
1:28:58]} 12. Qa4 {[%clk 1:29:56]} 12... c5 {[%clk 1:28:56]} 13. Na3 {[%clk
1:30:04]} 13... Qc7 {[%clk 1:28:54]} 14. Bf4 {[%clk 1:29:48]} 14... Qc6 {[%clk
1:29:04]} 15. Qc2 {[%clk 1:24:00]} 15... b5 {[%clk 1:29:20]} 16. Rfd1 {[%clk
1:14:20]} 16... Bb7 {[%clk 1:07:13]} 17. Qd2 {[%clk 0:49:54]} 17... Qb6 {[%clk
0:49:19]} 18. Nc2 {[%clk 0:37:21]} 18... Nc6 {[%clk 0:33:31]} 19. Bxd5 {[%clk
0:24:29]} 19... Rd8 {[%clk 0:18:04]} 20. Rac1 {[%clk 0:15:38]} 20... exd5 {[%clk
0:15:57]} 21. Ne1 {[%clk 0:09:45]} 21... d4 {[%clk 0:13:15]} 22. Nf3 {[%clk
0:06:08]} 22... c4 {[%clk 0:11:18]} 23. a3 {[%clk 0:05:09]} 23... h6 {[%clk
0:03:15]} 24. h4 {[%clk 0:05:18]} 24... a5 {[%clk 0:03:13]} 25. a4 {[%clk
0:04:44]} 25... Bf6 {[%clk 0:01:41]} 26. axb5 {[%clk 0:03:41]} 26... Qxb5 {[%clk
0:02:02]} 27. Qc2 {[%clk 0:03:46]} 27... Ba6 {[%clk 0:02:16]} 28. Qe4 {[%clk
0:03:26]} 28... Bb7 {[%clk 0:02:20]} 29. Qc2 {[%clk 0:03:53]} 29... Ba6 {[%clk
0:01:57]} 30. Qe4 {[%clk 0:04:21]} 30... a4 {[%clk 0:02:17]} 31. g4 {[%clk
0:02:11]} 31... Bb7 {[%clk 0:01:43]} 32. Qf5 {[%clk 0:01:25]} 32... Rd5 {[%clk
0:01:34]} 33. Qc2 {[%clk 0:01:47]} 33... Na5 {[%clk 0:00:42]} 34. Bd2 {[%clk
0:00:51]} 34... c3 {[%clk 0:00:42]} 35. Be1 {[%clk 0:00:35]} 35... Qd7 {[%clk
0:00:45]} 36. Nh2 {[%clk 0:00:47]} 36... d3 {[%clk 0:00:44]} 37. exd3 {[%clk
0:00:51]} 37... cxb2 {[%clk 0:00:55]} 38. Rb1 {[%clk 0:01:17]} 38... a3 {[%clk
0:00:58]} 39. Bb4 {[%clk 0:01:38]} 39... a2 {[%clk 0:00:32]} 40. Rxb2 {[%clk
0:02:05]} 40... Bxb2 {[%clk 0:00:33]} 41. Qxb2 {[%clk 0:28:52]} 41... Rxd3
{[%clk 0:25:15]} 42. Re1 {[%clk 0:21:46]} 42... Rb3 {[%clk 0:24:39]} 43. Qxa2
{[%clk 0:21:34]} 43... Rxb4 {[%clk 0:25:02]} 44. Qxa5 {[%clk 0:21:44]} 44...
Rxg4+ {[%clk 0:25:21]} 0-1

[Variant "Standard"]
[Site "Europe Echecs"]

[Event "Open Cappelle-la-Grande"]
[Date "2025.02.19"]
[White "Iglesias, Yosha"]
[Black "Nikolov, Momchil"]
[WhiteElo "2300"]
[BlackElo "2433"]
[Round "6.6.12"]
[Result "0-1"]
[TimeControl "40/5400+30:1800+30"]

1. d4 {[%clk 1:30:57]} 1... Nf6 {[%clk 1:30:33]} 2. Nf3 {[%clk 1:31:21]} 2... d5
{[%clk 1:30:16]} 3. c4 {[%clk 1:31:21]} 3... e6 {[%clk 1:28:57]} 4. cxd5 {[%clk
1:31:34]} 4... exd5 {[%clk 1:29:15]} 5. Nc3 {[%clk 1:31:56]} 5... c6 {[%clk
1:29:03]} 6. Qc2 {[%clk 1:31:30]} 6... Be7 {[%clk 1:26:44]} 7. Bg5 {[%clk
1:31:30]} 7... g6 {[%clk 1:26:57]} 8. e3 {[%clk 1:29:58]} 8... Bf5 {[%clk
1:27:14]} 9. Bd3 {[%clk 1:30:24]} 9... Bxd3 {[%clk 1:27:37]} 10. Qxd3 {[%clk
1:30:50]} 10... Nbd7 {[%clk 1:26:55]} 11. Bh6 {[%clk 1:30:28]} 11... Ng4 {[%clk
1:24:54]} 12. Bf4 {[%clk 1:30:50]} 12... O-O {[%clk 1:24:41]} 13. h3 {[%clk
1:31:05]} 13... Ngf6 {[%clk 1:24:58]} 14. O-O {[%clk 1:31:23]} 14... Re8 {[%clk
1:24:42]} 15. Qc2 {[%clk 1:29:18]} 15... Nb6 {[%clk 1:21:51]} 16. Bh2 {[%clk
1:21:31]} 16... Bd6 {[%clk 1:19:57]} 17. Ne5 {[%clk 1:21:21]} 17... Nbd7 {[%clk
1:17:26]} 18. Nd3 {[%clk 1:20:42]} 18... Bxh2+ {[%clk 1:16:52]} 19. Kxh2 {[%clk
1:21:06]} 19... Nb6 {[%clk 1:15:29]} 20. Kg1 {[%clk 1:12:46]} 20... Nc4 {[%clk
1:14:53]} 21. Nc5 {[%clk 1:11:03]} 21... Nd6 {[%clk 1:14:10]} 22. b4 {[%clk
1:04:42]} 22... b6 {[%clk 0:53:30]} 23. Nd3 {[%clk 0:57:21]} 23... Nc4 {[%clk
0:53:28]} 24. a4 {[%clk 0:54:13]} 24... Rc8 {[%clk 0:49:49]} 25. Qa2 {[%clk
0:43:58]} 25... Qd6 {[%clk 0:47:21]} 26. Rfd1 {[%clk 0:29:11]} 26... h5 {[%clk
0:41:24]} 27. b5 {[%clk 0:28:23]} 27... cxb5 {[%clk 0:36:58]} 28. Nxb5 {[%clk
0:28:46]} 28... Qe7 {[%clk 0:36:20]} 29. Na3 {[%clk 0:20:33]} 29... Ne4 {[%clk
0:33:53]} 30. Rdc1 {[%clk 0:12:38]} 30... Nxa3 {[%clk 0:27:57]} 31. Qxa3 {[%clk
0:12:08]} 31... Qxa3 {[%clk 0:27:02]} 32. Rxa3 {[%clk 0:12:34]} 32... Rxc1+
{[%clk 0:27:04]} 33. Nxc1 {[%clk 0:13:01]} 33... Rc8 {[%clk 0:27:24]} 34. Nd3
{[%clk 0:13:23]} 34... a5 {[%clk 0:15:50]} 35. Ra1 {[%clk 0:12:12]} 35... Nc3
{[%clk 0:14:43]} 36. Nf4 {[%clk 0:09:33]} 36... Rc4 {[%clk 0:13:33]} 37. h4
{[%clk 0:07:14]} 37... Kf8 {[%clk 0:08:06]} 38. Rc1 {[%clk 0:04:53]} 38... Nxa4
{[%clk 0:06:06]} 39. Rb1 {[%clk 0:05:16]} 39... Rb4 {[%clk 0:04:28]} 40. Rc1
{[%clk 0:05:41]} 40... Rb5 {[%clk 0:03:08]} 41. Rc7 {[%clk 0:02:19]} 41... Nb2
{[%clk 0:27:34]} 42. Kf1 {[%clk 0:31:50]} 42... a4 {[%clk 0:25:49]} 43. Ra7
{[%clk 0:31:51]} 43... Ra5 {[%clk 0:22:13]} 44. Rxa5 {[%clk 0:31:59]} 44... bxa5
{[%clk 0:22:37]} 45. Ne2 {[%clk 0:30:17]} 45... a3 {[%clk 0:22:08]} 46. Nc1
{[%clk 0:29:18]} 46... Nd3 {[%clk 0:22:08]} 47. Nb3 {[%clk 0:29:42]} 47... a2
{[%clk 0:21:35]} 48. Na1 {[%clk 0:29:02]} 48... a4 {[%clk 0:21:32]} 0-1

[Variant "Standard"]
[Site "Europe Echecs"]

[Event "Open Cappelle-la-Grande"]
[Date "2025.02.19"]
[White "Sorensen, Hampus"]
[Black "Gatineau, Yovann"]
[WhiteElo "2430"]
[BlackElo "2358"]
[Round "6.6.13"]
[Result "1-0"]
[TimeControl "40/5400+30:1800+30"]

1. e4 {[%clk 1:30:53]} 1... e5 {[%clk 1:21:08]} 2. Nf3 {[%clk 1:31:07]} 2... Nc6
{[%clk 1:21:34]} 3. Bb5 {[%clk 1:30:46]} 3... a6 {[%clk 1:21:30]} 4. Ba4 {[%clk
1:31:02]} 4... Nf6 {[%clk 1:21:54]} 5. d3 {[%clk 1:30:17]} 5... d6 {[%clk
1:21:53]} 6. c3 {[%clk 1:28:37]} 6... g6 {[%clk 1:21:37]} 7. Nbd2 {[%clk
1:18:43]} 7... Bd7 {[%clk 1:20:05]} 8. Nf1 {[%clk 1:17:49]} 8... Bg7 {[%clk
1:19:38]} 9. Ng3 {[%clk 1:16:11]} 9... O-O {[%clk 1:17:48]} 10. O-O {[%clk
1:15:47]} 10... Re8 {[%clk 1:13:32]} 11. Re1 {[%clk 1:14:46]} 11... h6 {[%clk
1:11:26]} 12. h3 {[%clk 1:13:53]} 12... d5 {[%clk 1:08:42]} 13. Bc2 {[%clk
1:10:27]} 13... Be6 {[%clk 1:04:10]} 14. Bd2 {[%clk 0:58:56]} 14... Qd6 {[%clk
0:55:18]} 15. a4 {[%clk 0:57:12]} 15... Rad8 {[%clk 0:53:41]} 16. a5 {[%clk
0:53:59]} 16... Nd7 {[%clk 0:48:50]} 17. b4 {[%clk 0:47:12]} 17... d4 {[%clk
0:45:50]} 18. cxd4 {[%clk 0:44:36]} 18... Nxd4 {[%clk 0:43:31]} 19. Nxd4 {[%clk
0:44:26]} 19... Qxd4 {[%clk 0:43:49]} 20. Rb1 {[%clk 0:41:41]} 20... Qd6 {[%clk
0:33:12]} 21. Ne2 {[%clk 0:38:38]} 21... Nb8 {[%clk 0:31:42]} 22. b5 {[%clk
0:28:49]} 22... f5 {[%clk 0:21:03]} 23. exf5 {[%clk 0:25:55]} 23... Bxf5 {[%clk
0:18:19]} 24. Qc1 {[%clk 0:23:13]} 24... axb5 {[%clk 0:16:12]} 25. Bxh6 {[%clk
0:20:53]} 25... c6 {[%clk 0:14:26]} 26. Ng3 {[%clk 0:19:21]} 26... Rf8 {[%clk
0:07:29]} 27. Bg5 {[%clk 0:16:50]} 27... Rde8 {[%clk 0:07:02]} 28. Ne4 {[%clk
0:16:21]} 28... Qd4 {[%clk 0:05:45]} 29. Be3 {[%clk 0:15:49]} 29... Qd8 {[%clk
0:05:53]} 30. Bc5 {[%clk 0:10:34]} 30... Qxa5 {[%clk 0:06:06]} 31. Bxf8 {[%clk
0:09:29]} 31... Rxf8 {[%clk 0:06:29]} 32. Nd6 {[%clk 0:08:13]} 32... Qd8 {[%clk
0:05:04]} 33. Nxb7 {[%clk 0:07:18]} 33... Qh4 {[%clk 0:04:14]} 34. Qe3 {[%clk
0:05:34]} 34... Bh6 {[%clk 0:03:33]} 35. Qxe5 {[%clk 0:05:09]} 35... Bg7 {[%clk
0:02:41]} 36. Qg3 {[%clk 0:04:43]} 36... Qd4 {[%clk 0:02:14]} 37. Nd6 {[%clk
0:04:35]} 37... Nd7 {[%clk 0:02:20]} 38. Nxf5 {[%clk 0:02:43]} 38... gxf5 {[%clk
0:02:32]} 39. Bb3+ {[%clk 0:02:39]} 39... Kh7 {[%clk 0:02:52]} 40. Qf3 {[%clk
0:00:56]} 40... Ne5 {[%clk 0:02:47]} 41. Qh5+ {[%clk 0:28:24]} 41... Bh6 {[%clk
0:32:09]} 42. Be6 {[%clk 0:27:12]} 1-0

[Variant "Standard"]
[Site "Europe Echecs"]